bitfinex/quotes_ETHUSD_20250318
["timestamp","ask_amount","ask_price","bid_price","bid_amount"]
[1742269576988,3.0,1910.2,1910.0,10.4708]
[1742269577194,3.0,1910.2,1910.1,5.23532]
[1742269579299,8.40641057,1910.4,1910.2,5.23504]
[1742269579945,8.40641057,1910.4,1910.1,10.47053]
[1742269580220,13.64096057,1910.4,1910.1,5.23521]
[1742269580431,4.64131057,1910.2,1909.9,5.23575]
[1742269580599,4.64131057,1910.0,1909.8,5.2361]
[1742269580793,4.64131057,1910.0,1909.8,10.47208]
[1742269581038,3.0,1910.0,1909.9,5.23587]
[1742269582310,0.8274,1910.1,1909.9,5.23587]
[1742269583130,0.8274,1910.1,1909.9,10.47166]
[1742269584235,10.94360725,1910.2,1909.9,10.47166]
[1742269584531,3.0,1910.1,1909.9,5.23579]
[1742269584935,3.0,1910.1,1909.9,5.23571]
[1742269585131,3.0,1910.1,1910.0,5.2356]
[1742269585334,4.64131057,1910.2,1910.0,5.2356]
[1742269585506,1.86925101,1910.3,1910.1,5.23523]
[1742269585930,4.86925101,1910.3,1910.1,5.23523]
[1742269586314,1.04535101,1910.3,1910.2,5.23505]
[1742269586514,0.8091,1910.5,1910.3,5.23467]
[1742269586721,3.8091,1910.5,1910.3,5.23467]
[1742269588534,3.8091,1910.5,1910.3,5.23453]
[1742269588740,3.8091,1910.5,1910.3,10.46917]
[1742269589520,3.8091,1910.5,1910.3,5.23453]
[1742269589717,3.8091,1910.5,1910.2,5.23498]
[1742269589919,8.45041057,1910.5,1910.2,10.46988]
[1742269590239,4.64131057,1910.3,1910.0,5.23547]
[1742269591050,7.64131057,1910.3,1910.0,10.47088]
[1742269591340,7.64131057,1910.3,1910.0,10.47091]
[1742269591541,7.64131057,1910.3,1910.0,10.47086]
[1742269591740,0.7859,1910.2,1909.9,5.23583]
[1742269591932,0.7859,1910.2,1909.9,5.23573]
[1742269592109,0.7859,1910.2,1910.0,5.23559]
[1742269592409,3.0,1910.3,1910.1,5.23532]
[1742269592842,3.0,1910.3,1910.1,5.23521]
[1742269593141,3.0,1910.3,1910.1,10.47041]
[1742269594138,3.0,1910.3,1910.2,5.23505]
[1742269595539,3.0,1910.3,1910.1,5.2352]
[1742269595748,3.0,1910.1,1909.9,5.23577]
[1742269595949,3.0,1910.1,1910.0,5.2356]
[1742269597020,3.0,1910.1,1909.9,10.47147]
[1742269597218,3.0,1910.1,1909.9,5.2357]
[1742269598350,3.0,1910.1,1909.9,10.47146]
[1742269598846,3.0,1910.1,1909.9,5.2357]
[1742269599149,3.0,1910.1,1909.9,10.47143]
[1742269600649,4.84145362,1910.3,1910.0,5.2356]
[1742269601554,10.07623362,1910.3,1910.0,5.2356]
[1742269601852,4.84145362,1910.3,1910.0,10.47098]
[1742269603816,10.07623362,1910.3,1910.0,5.23538]
[1742269605155,15.31117362,1910.3,1910.0,5.23538]
[1742269605334,15.31117362,1910.3,1909.9,10.47156]
[1742269605647,10.07623362,1910.3,1910.0,5.2356]
[1742269605855,4.84145362,1910.3,1910.1,5.23527]
[1742269608452,4.84145362,1910.3,1910.1,5.23523]
[1742269608653,3.0,1910.3,1910.2,5.23505]
[1742269609651,3.0,1910.4,1910.2,5.23505]
[1742269610534,3.0,1910.4,1910.1,6.04025]
[1742269610735,12.87583057,1910.4,1910.1,5.23515]
[1742269611139,18.11048057,1910.4,1910.1,5.23515]
[1742269611456,0.7879,1910.3,1910.0,5.23548]
[1742269611658,0.7879,1910.3,1910.0,10.47092]
[1742269611832,7.64131057,1910.2,1909.7,0.8318]
[1742269612037,12.87656057,1910.2,1909.9,5.23585]
[1742269612264,7.64131057,1910.2,1909.9,10.47152]
[1742269612435,12.87640057,1910.2,1909.9,5.23567]
[1742269612640,12.87640057,1910.2,1909.9,5.23586]
[1742269613656,12.87640057,1910.2,1909.8,10.47207]
[1742269613860,12.87640057,1910.2,1909.9,5.23581]
[1742269614038,12.87640057,1910.2,1909.9,5.23574]
[1742269615764,1.06158092,1910.1,1909.9,5.23574]
[1742269616165,1.06158092,1910.1,1909.8,5.23608]
[1742269616353,1.06158092,1910.1,1909.8,10.47214]
[1742269616732,1.06158092,1910.1,1909.9,5.23583]
[1742269617968,6.29692092,1910.1,1909.8,5.23601]
[1742269618261,1.06158092,1910.1,1909.8,10.472]
[1742269618463,1.06158092,1910.1,1909.8,5.23599]
[1742269618963,1.06158092,1910.1,1909.8,10.472]
[1742269619262,12.87640057,1910.2,1909.9,5.23581]
[1742269619467,7.64131057,1910.2,1909.9,10.47152]
[1742269619857,7.64131057,1910.2,1909.9,5.23571]
[1742269620036,8.68042972,1910.2,1909.9,5.23571]
[1742269620231,1.03911915,1910.2,1910.0,5.23557]
[1742269620972,3.0,1910.1,1909.8,5.23599]
[1742269621149,7.64131057,1910.1,1909.8,10.47201]
[1742269621870,7.64131057,1910.1,1909.8,5.23599]
[1742269622070,7.64131057,1910.1,1909.8,10.47203]
[1742269622268,7.64131057,1910.1,1909.8,5.23599]
[1742269622567,7.64131057,1910.1,1909.9,5.23586]
[1742269623186,3.0,1910.1,1909.9,5.23586]
[1742269624070,0.7879,1910.3,1909.9,1.047185]
[1742269624269,0.7879,1910.3,1910.1,5.23518]
[1742269624675,0.7879,1910.3,1909.7,0.7706]
[1742269624676,3.0,1910.2,1909.7,0.7706]
[1742269624846,3.0,1910.0,1909.8,5.23602]
[1742269625040,3.0,1910.0,1909.8,5.836572]
[1742269625235,3.0,1910.0,1909.9,5.23587]
[1742269625746,7.987,1910.2,1909.9,5.23578]
[1742269625971,7.987,1910.2,1910.0,5.23556]
[1742269626145,7.987,1910.2,1909.9,10.47155]
[1742269626345,7.987,1910.2,1909.9,11.5787712]
[1742269626548,4.987,1910.2,1910.0,5.23556]
[1742269626793,0.832,1910.5,1910.3,5.23455]
[1742269626999,11.92972929,1910.7,1910.4,5.23436]
[1742269627585,4.64131057,1910.5,1910.2,6.00552]
[1742269627792,3.0,1910.4,1910.2,5.835592]
[1742269628375,3.0,1910.4,1910.2,0.600552]
[1742269628781,0.832,1910.5,1910.3,5.23459]
[1742269629109,8.46201057,1910.6,1910.3,5.23458]
[1742269630203,13.69599057,1910.6,1910.3,5.23458]
[1742269631189,8.46201057,1910.6,1910.3,10.46921]
[1742269631390,8.46201057,1910.6,1910.3,5.23458]
[1742269631595,8.46201057,1910.6,1910.3,10.46917]
[1742269631968,8.46201057,1910.6,1910.4,5.23433]
[1742269632174,0.7723,1911.0,1910.7,5.23368]
[1742269632369,5.7583,1911.0,1910.7,5.23368]
[1742269632701,3.0,1910.8,1910.6,5.23385]
[1742269634679,3.0,1910.8,1910.5,5.23423]
[1742269635005,3.0,1910.8,1910.5,10.46831]
[1742269635901,3.0,1910.6,1910.3,5.2346]
[1742269636102,7.64131057,1910.7,1910.4,5.23441]
[1742269636303,4.64131057,1910.5,1910.3,5.2346]
[1742269636510,3.0,1910.4,1910.3,5.2346]
[1742269637372,3.0,1910.4,1910.2,5.23497]
[1742269637580,3.0,1910.2,1910.0,5.23549]
[1742269638081,7.985,1910.2,1910.0,5.23549]
[1742269640780,3.0,1910.0,1909.7,5.23637]
[1742269641010,4.64131057,1909.9,1909.6,10.47311]
[1742269641410,3.0,1909.8,1909.6,5.23653]
[1742269642535,3.0,1909.8,1909.7,5.23642]
[1742269642736,3.0,1909.8,1909.7,6.02032]
[1742269642891,3.0,1909.8,1909.7,5.23642]
[1742269643501,3.0,1909.8,1909.6,6.02043]
[1742269643738,3.0,1909.8,1909.6,10.47312]
[1742269644035,3.0,1909.8,1909.6,5.23653]
[1742269645839,4.64131057,1909.7,1909.4,6.02109]
[1742269646128,4.64131057,1909.5,1909.3,5.23752]
[1742269646433,4.64131057,1909.5,1909.2,5.23777]
[1742269646795,4.64131057,1909.5,1909.2,10.47542]
[1742269646994,3.0,1909.4,1909.2,5.23765]
[1742269647545,3.0,1909.4,1909.1,11.25985]
[1742269647832,3.0,1909.4,1909.1,10.47595]
[1742269648043,3.0,1909.4,1909.1,10.47585]
[1742269648241,4.64131057,1909.3,1909.1,5.23792]
[1742269650044,4.64131057,1909.3,1909.1,10.4758]
[1742269650213,7.64131057,1909.3,1909.2,5.23779]
[1742269650419,3.0,1909.3,1909.2,5.23779]
[1742269651651,3.0,1909.3,1909.2,7.096057]
[1742269652557,4.987,1909.6,1909.5,5.23697]
[1742269652853,7.987,1909.6,1909.5,5.23697]
[1742269653205,3.0,1909.5,1909.4,5.23723]
[1742269654347,4.64131057,1909.6,1909.5,5.23697]
[1742269654524,3.0,1909.7,1909.5,10.47381]
[1742269655233,3.0,1909.7,1909.6,5.23669]
[1742269655428,3.0,1909.7,1909.5,5.23682]
[1742269655732,4.64131057,1909.6,1909.4,5.23719]
[1742269655915,4.64131057,1909.6,1909.4,10.4743]
[1742269656115,4.64131057,1909.6,1909.5,5.23697]
[1742269656638,4.64131057,1909.6,1909.4,10.4742]
[1742269656942,4.64131057,1909.6,1909.5,5.23697]
[1742269659253,4.64131057,1909.6,1909.4,5.23709]
[1742269659758,4.64131057,1909.6,1909.4,10.47418]
[1742269659946,4.64131057,1909.6,1909.4,10.47423]
[1742269660144,4.64131057,1909.6,1909.5,5.23697]
[1742269660313,4.64131057,1909.6,1909.4,5.23709]
[1742269662354,4.64131057,1909.6,1909.3,10.47489]
[1742269662663,3.0,1909.3,1909.2,5.23772]
[1742269663524,3.0,1909.3,1909.2,5.23779]
[1742269664522,3.785,1909.5,1909.2,5.23779]
[1742269665358,3.785,1909.5,1909.3,5.23745]
[1742269665550,3.785,1909.5,1909.2,5.23779]
[1742269665751,9.02199,1909.5,1909.2,5.23779]
[1742269666357,11.1438959,1909.5,1909.2,5.23779]
[1742269669254,5.9069059,1909.5,1909.2,10.4753]
[1742269669627,3.785,1909.5,1909.2,10.4753]
[1742269669827,9.02197,1909.5,1909.2,5.23764]
[1742269670356,9.02197,1909.5,1909.2,10.47535]
[1742269670959,3.785,1909.5,1909.3,5.23749]
[1742269671323,3.785,1909.5,1909.3,10.47489]
[1742269671550,3.785,1909.5,1909.3,5.2374]
[1742269672159,3.0,1909.5,1909.3,5.2374]
[1742269672358,3.0,1909.5,1909.2,5.23768]
[1742269672549,8.23698,1909.5,1909.2,5.23768]
[1742269673925,8.23698,1909.5,1909.2,5.23767]
[1742269675666,13.47412,1909.5,1909.2,5.23767]
[1742269675845,8.23698,1909.5,1909.2,5.23767]
[1742269676959,3.0,1909.3,1909.1,5.23805]
[1742269677161,3.0,1909.1,1909.0,0.04]
[1742269677460,3.0,1909.1,1909.0,5.27834]
[1742269677660,0.809,1909.2,1909.0,0.04]
[1742269677861,3.0,1909.3,1909.0,5.27825]
[1742269678843,3.0,1909.3,1909.0,10.51645]
[1742269679053,3.0,1909.3,1909.1,5.23802]
[1742269679372,7.987,1909.4,1909.2,5.23768]
[1742269679665,7.987,1909.4,1909.2,5.23764]
[1742269680383,7.987,1909.4,1909.1,6.04065]
[1742269680384,23.10299057,1909.4,1909.1,6.04065]
[1742269680552,18.68306057,1909.4,1909.0,10.5165]
[1742269680734,26.71454463,1909.4,1909.0,5.27822]
[1742269680938,5.23753,1909.3,1909.0,5.27822]
[1742269681457,3.0,1909.1,1909.0,0.04]
[1742269682084,9.03987,1909.1,1909.0,0.04]
[1742269682241,10.93176906,1909.1,1909.0,0.04]
[1742269682566,11.32687483,1909.1,1909.0,0.04]
[1742269683446,10.93176906,1909.1,1909.0,0.04]
[1742269684886,11.96060091,1909.1,1909.0,0.04]
[1742269685865,3.0,1909.1,1909.0,5.27834]
[1742269686089,3.0,1909.1,1909.0,0.04]
[1742269686288,7.987,1909.1,1909.0,5.27834]
[1742269687400,17.86638057,1909.1,1909.0,0.04]
[1742269691984,3.0,1908.7,1908.5,5.23962]
[1742269692380,3.0,1908.7,1908.5,10.4792]
[1742269692748,3.0,1908.7,1908.5,5.23958]
[1742269692955,3.0,1908.7,1908.5,5.23957]
[1742269693875,4.02634922,1908.9,1908.6,5.23944]
[1742269694069,4.02634922,1908.9,1908.7,5.23916]
[1742269694980,4.02634922,1908.9,1908.6,5.99223]
[1742269695184,4.02634922,1908.9,1908.6,11.23154]
[1742269695386,9.26499922,1908.9,1908.6,5.99221]
[1742269697087,9.26499922,1908.9,1908.6,11.23152]
[1742269697307,4.02634922,1908.9,1908.7,5.23908]
[1742269697991,4.02634922,1908.9,1908.6,5.99228]
[1742269698359,4.02634922,1908.9,1908.6,5.99221]
[1742269698588,9.26497922,1908.9,1908.6,5.99221]
[1742269699994,9.26497922,1908.9,1908.6,5.23931]
[1742269700170,11.43543101,1908.9,1908.6,5.23931]
[1742269700372,3.0,1908.7,1908.3,5.24019]
[1742269700583,3.0,1908.7,1908.2,6.45917423]
[1742269700584,3.0,1908.4,1908.2,6.45917423]
[1742269700891,3.0,1908.4,1908.2,6.06663]
[1742269701292,3.0,1908.4,1908.2,11.30708]
[1742269701492,3.0,1908.4,1908.2,10.48098]
[1742269701696,3.0,1908.4,1908.3,5.24026]
[1742269703689,3.0,1908.4,1908.3,6.894973]
[1742269704198,4.987,1908.8,1908.7,5.23916]
[1742269704618,7.987,1908.8,1908.7,5.23916]
[1742269705980,3.0,1908.8,1908.7,5.23916]
[1742269711106,1.07491531,1909.0,1908.9,5.23861]
[1742269711473,3.0,1909.2,1908.9,10.47722]
[1742269711677,7.64131057,1909.2,1909.0,5.23826]
[1742269712705,7.64131057,1909.2,1909.0,5.23819]
[1742269712906,7.64131057,1909.2,1909.1,5.23807]
[1742269713070,0.8085,1909.3,1909.1,5.23807]
[1742269713276,3.0,1909.2,1909.1,5.23807]
[1742269714303,6.4822577,1909.3,1909.1,5.23797]
[1742269714675,9.4822577,1909.3,1909.2,5.23779]
[1742269714879,10.92918347,1909.3,1909.2,5.23779]
[1742269715606,10.92918347,1909.3,1909.1,5.23797]
[1742269716103,10.92918347,1909.3,1909.1,10.47594]
[1742269716297,10.92918347,1909.3,1909.1,5.23797]
[1742269717809,10.92918347,1909.3,1909.1,10.47589]
[1742269718379,10.92918347,1909.3,1909.2,5.23779]
[1742269719509,10.92918347,1909.3,1909.1,10.47584]
[1742269719704,10.92918347,1909.3,1909.1,5.23792]
[1742269719913,10.92918347,1909.3,1909.1,10.47587]
[1742269721309,10.12068347,1909.3,1909.1,10.47587]
[1742269721511,10.12068347,1909.3,1909.2,5.23779]
[1742269722025,8.6737577,1909.3,1909.2,5.23779]
[1742269723281,7.64131057,1909.3,1909.2,5.23779]
[1742269724914,0.7926,1909.1,1908.8,5.23875]
[1742269725217,4.64131057,1909.1,1908.9,5.23836]
[1742269725412,3.0,1909.2,1909.1,5.23804]
[1742269737783,3.0,1909.2,1908.6,9.88065057]
[1742269737784,0.8041,1909.0,1908.7,5.23896]
[1742269737983,0.8041,1909.0,1908.7,10.47798]
[1742269737984,3.0,1908.9,1908.7,10.47798]
[1742269738319,3.0,1908.7,1908.6,5.23942]
[1742269739466,3.8041,1908.7,1908.5,5.23962]
[1742269739746,3.8041,1908.7,1908.3,5.24008]
[1742269739747,3.0,1908.5,1908.3,5.24008]
[1742269739902,3.0,1908.5,1908.4,5.23999]
[1742269740302,4.75617076,1908.7,1908.5,5.23957]
[1742269740753,1.75617076,1908.7,1908.5,10.47915]
[1742269740914,0.8041,1908.7,1908.5,10.47915]
[1742269741250,0.8041,1908.7,1908.5,5.23957]
[1742269743243,4.64131057,1908.6,1908.4,5.23998]
[1742269744049,4.64131057,1908.6,1908.5,5.23971]
[1742269744408,3.8041,1908.7,1908.5,5.23971]
[1742269744609,4.75617076,1908.7,1908.5,5.23971]
[1742269745746,3.95207076,1908.7,1908.5,10.47924]
[1742269746044,3.95207076,1908.7,1908.5,5.23953]
[1742269746414,3.95207076,1908.7,1908.4,5.23994]
[1742269746860,9.19124076,1908.7,1908.4,5.23994]
[1742269747160,4.64131057,1908.6,1908.4,5.23994]
[1742269749349,4.64131057,1908.6,1908.3,5.24021]
[1742269749551,4.64131057,1908.6,1908.3,5.2401]
[1742269749737,4.64131057,1908.6,1908.4,5.23998]
[1742269749916,6.0245657,1908.6,1908.4,5.23998]
[1742269752864,5.24,1908.4,1908.1,5.24061]
[1742269753157,3.0,1908.3,1908.2,5.24054]
[1742269754447,4.8573321,1908.5,1908.2,5.2403]
[1742269754652,6.46947588,1908.5,1908.2,10.48068]
[1742269755120,6.46947588,1908.5,1908.3,5.24018]
[1742269755317,6.46947588,1908.5,1908.2,5.2403]
[1742269755522,5.65547588,1908.5,1908.3,5.24023]
[1742269757349,5.65547588,1908.5,1908.2,6.004]
[1742269757554,0.56554759,1908.4,1908.2,5.2403]
[1742269757847,3.0,1908.3,1908.2,10.48069]
[1742269759356,3.0,1908.3,1908.2,5.2403]
[1742269767167,5.79142608,1908.4,1908.3,5.24026]
[1742269767662,0.7969,1908.2,1907.7,0.7599]
[1742269767837,3.0,1908.0,1907.9,5.2411]
[1742269768036,3.0,1908.1,1908.0,5.24093]
[1742269769169,3.7969,1908.2,1908.0,5.24093]
[1742269770088,3.7969,1908.2,1908.0,10.4819]
[1742269770387,3.7969,1908.2,1908.0,5.24093]
[1742269771669,3.7969,1908.2,1907.9,5.24124]
[1742269771861,9.03745,1908.2,1907.9,10.48246]
[1742269772051,3.7969,1908.2,1908.0,5.24107]
[1742269772252,5.20481091,1908.2,1908.0,5.24107]
[1742269774077,4.65359959,1908.1,1907.8,5.24152]
[1742269774372,9.89441959,1908.1,1907.8,5.24163]
[1742269775947,8.2411,1908.0,1907.7,5.24177]
[1742269776266,3.7933,1908.0,1907.8,5.24162]
[1742269776473,3.0,1908.0,1907.8,10.48293]
[1742269776661,3.0,1908.0,1907.8,5.24143]
[1742269776864,3.0,1908.0,1907.8,10.48297]
[1742269777855,3.0,1908.0,1907.8,5.24143]
[1742269778062,3.0,1908.0,1907.8,10.48295]
[1742269778379,3.0,1908.0,1907.8,5.24143]
[1742269779682,3.0,1908.0,1907.7,10.48342]
[1742269779856,3.0,1908.0,1907.7,5.24168]
[1742269780053,3.0,1908.0,1907.7,10.48349]
[1742269780703,3.0,1908.0,1907.8,5.24161]
[1742269780885,3.0,1908.0,1907.8,10.48316]
[1742269781264,3.0,1908.0,1907.8,10.48308]
[1742269781465,3.0,1908.0,1907.8,10.48307]
[1742269781685,3.0,1908.0,1907.9,5.24136]
[1742269786487,3.0,1908.0,1907.8,5.24151]
[1742269786704,3.0,1907.8,1907.3,0.8184]
[1742269786987,7.65359959,1907.6,1907.4,10.48532]
[1742269787896,7.65359959,1907.6,1907.4,5.24258]
[1742269788237,7.65359959,1907.6,1907.5,5.24246]
[1742269788699,12.89524959,1907.8,1907.5,10.48478]
[1742269788899,15.28372255,1907.8,1907.5,10.48478]
[1742269789115,15.28372255,1907.8,1907.5,5.24232]
[1742269789265,15.28372255,1907.8,1907.5,5.24244]
[1742269789465,16.31366895,1907.8,1907.5,5.24244]
[1742269790197,3.0,1907.6,1907.5,5.24244]
[1742269790414,3.0,1907.7,1907.6,5.24199]
[1742269790692,3.0,1907.8,1907.6,10.48407]
[1742269790893,3.0,1907.8,1907.6,5.24199]
[1742269792572,3.0,1907.8,1907.6,10.48404]
[1742269792773,3.0,1907.8,1907.6,5.24199]
[1742269793899,3.0,1907.8,1907.5,10.48466]
[1742269794106,3.0,1907.8,1907.6,5.24214]
[1742269796369,3.0,1907.8,1907.7,5.24191]
[1742269799707,3.0,1907.8,1907.6,11.27938]
[1742269800988,3.0,1907.8,1907.7,5.24191]
[1742269801810,5.79301627,1907.8,1907.7,5.24191]
[1742269803305,3.0,1907.8,1907.7,5.24191]
[1742269804776,5.79301627,1907.8,1907.7,5.24191]
[1742269806997,3.0,1907.7,1907.5,5.24235]
[1742269807311,2.79301627,1907.7,1907.4,6.662253]
[1742269807490,3.61721627,1907.6,1907.4,5.2426]
[1742269808199,0.8242,1907.6,1907.4,5.2426]
[1742269808704,3.61721627,1907.6,1907.4,5.2426]
[1742269809310,3.61721627,1907.6,1907.3,10.4858]
[1742269809504,3.61721627,1907.6,1907.4,5.24273]
[1742269809880,3.61721627,1907.6,1907.4,5.24261]
[1742269810502,3.61721627,1907.6,1907.3,5.24289]
[1742269810911,3.61721627,1907.6,1907.4,5.24273]
[1742269811086,2.79301627,1907.6,1907.4,10.48532]
[1742269811285,2.79301627,1907.6,1907.4,5.24259]
[1742269811485,2.79301627,1907.6,1907.4,10.48523]
[1742269811881,2.79301627,1907.6,1907.4,5.24259]
[1742269812088,2.79301627,1907.6,1907.4,10.48521]
[1742269812415,2.79301627,1907.6,1907.4,5.24259]
[1742269813114,3.57951627,1907.5,1907.1,5.24348]
[1742269813318,2.79301627,1907.2,1907.0,5.24383]
[1742269814186,6.57951627,1907.3,1907.0,10.48755]
[1742269814809,11.82256627,1907.3,1907.0,5.24372]
[1742269815002,6.57951627,1907.3,1907.0,10.48747]
[1742269815212,6.57951627,1907.3,1907.1,5.24356]
[1742269816515,11.82256627,1907.3,1907.0,10.48744]
[1742269817116,6.57951627,1907.3,1907.1,5.24356]
[1742269818408,6.57951627,1907.3,1907.0,5.24372]
[1742269818907,2.79301627,1907.2,1907.0,5.24372]
[1742269820821,2.79301627,1907.2,1906.9,10.48802]
[1742269822807,2.79301627,1907.2,1907.0,5.24374]
[1742269822992,6.57951627,1907.3,1907.0,10.48741]
[1742269823189,2.79301627,1907.2,1907.0,5.24369]
[1742269823719,3.7865,1907.3,1906.9,5.24406]
[1742269823720,2.79301627,1907.1,1906.9,5.24406]
[1742269824023,2.79301627,1907.2,1906.9,10.48805]
[1742269824390,2.79301627,1907.2,1906.9,5.24399]
[1742269824584,2.79301627,1907.2,1906.9,10.48795]
[1742269827224,2.79301627,1907.2,1906.9,5.24396]
[1742269827517,5.79301627,1907.1,1906.8,5.24433]
[1742269827690,3.55671627,1907.0,1906.8,5.24433]
[1742269827888,5.79301627,1906.9,1906.6,11.25219]
[1742269828114,5.79301627,1906.9,1906.6,10.48969]
[1742269828616,11.03715627,1906.9,1906.5,5.24507]
[1742269828817,2.79301627,1906.7,1906.6,5.24485]
[1742269829026,3.0,1906.7,1906.6,5.24485]
[1742269830992,2.79301627,1906.7,1906.4,5.24547]
[1742269831326,5.79301627,1906.5,1906.3,10.49124]
[1742269831521,5.79301627,1906.5,1906.3,5.24559]
[1742269832223,5.79301627,1906.4,1906.2,5.24603]
[1742269832523,2.79301627,1906.3,1906.2,5.24603]
[1742269833024,3.0,1906.2,1905.9,5.24674]
[1742269833248,3.0,1906.2,1905.9,5.24673]
[1742269833801,3.0,1906.0,1905.6,0.7936]
[1742269834010,3.0,1906.0,1905.8,5.2471]
[1742269835198,3.0,1906.0,1905.8,5.24704]
[1742269835397,3.0,1906.0,1905.8,10.49407]
[1742269835629,3.0,1906.0,1905.8,5.24703]
[1742269836410,10.43201333,1906.0,1905.7,5.24737]
[1742269836720,5.18535333,1906.0,1905.8,5.24711]
[1742269837496,5.18535333,1906.0,1905.9,5.24686]
[1742269837718,3.8244,1906.0,1905.8,5.24711]
[1742269837912,3.8244,1906.0,1905.8,5.247]
[1742269840125,3.8244,1906.0,1905.8,5.24711]
[1742269840507,3.8244,1906.0,1905.7,10.49453]
[1742269840732,3.8244,1906.0,1905.8,5.24712]
[1742269846431,5.26779633,1906.0,1905.7,10.49456]
[1742269846812,5.26779633,1906.0,1905.8,5.24713]
[1742269850175,5.26779633,1906.0,1905.8,10.49415]
[1742269850357,3.8244,1906.0,1905.9,5.24686]
[1742269850964,3.8244,1906.0,1905.8,5.24702]
[1742269855191,6.6230012,1906.0,1905.8,5.24702]
[1742269855495,3.0,1905.8,1905.5,5.24773]
[1742269855695,5.7986012,1905.8,1905.5,10.49557]
[1742269856084,5.7986012,1905.8,1905.6,5.24768]
[1742269857189,4.66571687,1905.8,1905.5,5.24773]
[1742269857400,3.0,1905.7,1905.5,10.49561]
[1742269857568,3.0,1905.7,1905.5,10.49555]
[1742269858400,3.0,1905.7,1905.5,5.24773]
[1742269858574,4.36761769,1905.7,1905.5,5.24793]
[1742269859782,4.36761769,1905.7,1905.5,10.4958]
[1742269859978,8.42891687,1905.8,1905.6,5.24758]
[1742269860775,13.67607687,1905.8,1905.4,10.49624]
[1742269860968,13.67607687,1905.8,1905.5,5.24791]
[1742269861432,7.66571687,1905.8,1905.6,5.24748]
[1742269861873,7.66571687,1905.8,1905.7,5.24741]
[1742269863419,7.66571687,1905.8,1905.6,10.49506]
[1742269863825,7.66571687,1905.8,1905.7,5.24741]
[1742269863976,3.0,1905.8,1905.7,5.24741]
[1742269864171,3.0,1905.8,1905.7,6.06561]
[1742269864602,3.0,1905.8,1905.7,5.24741]
[1742269869386,3.0,1905.8,1905.7,7.061799]
[1742269870609,3.0,1905.8,1905.7,6.01231]
[1742269872708,3.0,1905.7,1905.4,5.24811]
[1742269872903,4.66571687,1905.7,1905.5,5.2478]
[1742269873678,5.71612266,1905.7,1905.5,5.2478]
[1742269873877,4.66571687,1905.7,1905.5,5.2478]
[1742269874086,6.03299056,1905.7,1905.5,5.2478]
[1742269875079,0.7598,1905.5,1905.2,10.49737]
[1742269875275,3.0,1905.4,1905.2,10.49729]
[1742269875570,3.0,1905.4,1905.2,10.4973]
[1742269875761,3.0,1905.4,1905.3,5.24851]
[1742269877369,6.35327369,1905.7,1905.5,5.24785]
[1742269877370,11.78939056,1905.7,1905.5,5.24785]
[1742269877576,3.63532737,1905.6,1905.5,5.24785]
[1742269877779,3.0,1905.6,1905.5,5.24785]
[1742269877981,4.05811866,1905.6,1905.5,5.24785]
[1742269880257,4.05811866,1905.6,1905.4,5.24822]
[1742269880488,4.66571687,1905.5,1905.2,5.24864]
[1742269881560,3.8011,1905.4,1905.1,5.25895]
[1742269881777,3.8011,1905.4,1905.2,5.24878]
[1742269882099,3.8011,1905.4,1905.1,5.25895]
[1742269882285,3.0,1905.2,1905.1,0.01]
[1742269882467,3.0,1905.2,1905.1,5.25906]
[1742269883185,3.0,1905.2,1905.1,0.01]
[1742269885666,9.01159,1905.2,1905.1,0.01]
[1742269886341,3.7628,1905.2,1905.1,0.01]
[1742269886507,5.62910769,1905.2,1905.1,0.01]
[1742269887022,7.08921331,1905.2,1905.1,0.01]
[1742269887191,12.33800331,1905.2,1905.1,0.01]
[1742269887396,3.8278,1904.9,1904.6,5.2503]
[1742269887742,3.0,1904.7,1904.6,5.2503]
[1742269887908,3.0,1904.7,1904.5,10.50119]
[1742269888106,3.0,1904.7,1904.6,5.25044]
[1742269889237,3.0,1904.7,1904.6,6.05894]
[1742269889388,9.51351687,1905.1,1904.9,5.24961]
[1742269889389,3.0,1905.0,1904.9,5.24961]
[1742269889737,3.0,1904.7,1904.4,5.25086]
[1742269890042,7.66571687,1904.7,1904.5,5.25054]
[1742269890543,7.66571687,1904.7,1904.4,5.25086]
[1742269890835,7.66571687,1904.7,1904.4,10.50169]
[1742269891795,7.66571687,1904.7,1904.5,5.25067]
[1742269892129,7.66571687,1904.7,1904.5,10.50127]
[1742269892337,7.66571687,1904.7,1904.5,5.2506]
[1742269892829,7.66571687,1904.7,1904.5,10.5012]
[1742269892994,0.8278,1905.0,1904.5,1.85862]
[1742269893202,19.95733605,1905.1,1904.7,5.25]
[1742269893415,3.0,1905.0,1904.8,6.05835]
[1742269893745,8.68571687,1905.1,1904.9,5.24961]
[1742269893942,3.0,1905.0,1904.9,5.24961]
[1742269894446,3.0,1905.0,1904.8,6.05819]
[1742269894847,3.0,1905.0,1904.8,11.30794]
[1742269895549,3.0,1905.0,1904.9,5.24961]
[1742269896515,3.0,1905.0,1904.8,6.05819]
[1742269897747,3.0,1905.0,1904.8,11.30794]
[1742269898243,3.0,1905.0,1904.8,11.30796]
[1742269898453,3.0,1905.0,1904.8,6.05819]
[1742269899048,8.24942,1905.0,1904.7,5.25013]
[1742269899244,8.24942,1905.0,1904.7,10.50015]
[1742269899453,3.0,1905.0,1904.8,5.24977]
[1742269900070,3.0,1905.0,1904.7,10.49998]
[1742269900221,3.0,1905.0,1904.8,5.24989]